bitfinex-derivatives/quotes_BNBF0:USTF0_20251203
["timestamp","ask_amount","ask_price","bid_price","bid_amount"]
[1764753556068,0.19392588,897.5,896.59,0.8326994]
[1764753557168,0.19392588,897.5,896.6,0.8326994]
[1764753558070,0.19392588,897.5,896.63,0.8326994]
[1764753559170,0.19392588,897.5,896.66,0.8326994]
[1764753561069,0.19392588,897.5,896.67,0.8326994]
[1764753563073,0.19392588,897.5,896.68,0.8326994]
[1764753564077,0.19392588,897.5,896.69,0.8326994]
[1764753565176,0.19392588,897.5,896.7,0.8326994]
[1764753566176,0.19392588,897.5,896.71,0.8326994]
[1764753567171,0.19392588,897.5,896.72,0.8326994]
[1764753568777,0.19392588,897.5,896.58,1.429]
[1764753568980,0.19392588,897.5,896.73,1.048]
[1764753569180,0.19392588,897.5,896.73,1.87581606]
[1764753569880,0.19392588,897.5,896.73,1.048]
[1764753581378,0.19392588,897.5,896.75,0.82781606]
[1764753582279,0.19392588,897.5,896.76,0.82781606]
[1764753582880,0.19392588,897.5,896.84,0.82781606]
[1764753583185,0.19392588,897.5,896.85,0.82781606]
[1764753584085,0.19392588,897.5,896.86,0.82781606]
[1764753587388,0.19392588,897.5,896.85,0.82781606]
[1764753587688,0.19392588,897.5,896.87,1.458]
[1764753591889,1.1059566,897.48,896.87,1.458]
[1764753593185,1.1059566,897.49,896.87,1.458]
[1764753595687,1.29988248,897.5,896.87,1.458]
[1764753596690,0.19392588,897.5,896.87,1.458]
[1764753624420,0.19392588,897.5,896.88,1.012]
[1764753635228,0.19392588,897.5,896.96,0.82781606]
[1764753636129,0.19392588,897.5,896.95,0.82781606]
[1764753640133,0.19392588,897.5,896.94,0.82781606]
[1764753644135,0.19392588,897.5,896.93,0.82781606]
[1764753648234,0.19392588,897.5,896.92,0.82781606]
[1764753650037,0.19392588,897.5,896.93,0.82781606]
[1764753651033,0.19392588,897.5,896.96,0.82781606]
[1764753654339,0.19392588,897.5,896.97,0.82781606]
[1764753656341,0.19392588,897.5,896.98,0.82781606]
[1764753656641,0.19392588,897.5,896.99,0.82781606]
[1764753656841,0.19392588,897.5,897.0,0.82781606]
[1764753658238,0.19392588,897.5,897.01,0.82781606]
[1764753659141,0.19392588,897.5,897.0,0.82781606]
[1764753659340,0.19392588,897.5,897.01,0.82781606]
[1764753660543,1.1059566,897.93,897.05,0.82781606]
[1764753660744,0.19387025,897.65,897.09,0.82781606]
[1764753662045,0.19387025,897.65,897.08,0.82781606]
[1764753662344,0.19387025,897.65,897.09,0.82781606]
[1764753663545,0.19387025,897.65,897.1,1.104]
[1764753665149,1.1059566,898.02,897.12,0.82781606]
[1764753665349,0.19383083,897.92,897.36,0.82781606]
[1764753665544,0.19383083,897.92,897.29,0.82781606]
[1764753666045,0.19383083,897.92,897.27,0.82781606]
[1764753666350,0.19383083,897.92,897.28,0.82781606]
[1764753666547,0.19383083,897.92,897.27,0.82781606]
[1764753667047,0.19383083,897.92,897.26,0.82781606]
[1764753668250,0.19383083,897.92,897.24,0.82781606]
[1764753669249,0.19383083,897.92,897.1,1.104]
[1764753669250,0.19383083,897.92,897.23,0.82781606]
[1764753670147,0.19383083,897.92,897.22,0.82781606]
[1764753670653,0.19383083,897.92,897.23,0.973]
[1764753679851,0.19383083,897.92,897.24,0.928]
[1764753697868,0.19383083,897.92,897.23,0.973]
[1764753702769,1.29978743,897.92,897.23,0.973]
[1764753704064,0.19383083,897.92,897.23,0.973]
[1764753716374,1.1059566,897.84,897.23,0.973]
[1764753718076,1.1059566,897.85,897.23,0.973]
[1764753720382,1.1059566,897.84,897.23,0.973]
[1764753721379,1.1059566,897.85,897.23,0.973]
[1764753725083,1.1059566,897.86,897.23,0.973]
[1764753728385,1.1059566,897.87,897.23,0.973]
[1764753729584,1.1059566,897.87,896.66,0.82852937]
[1764753730387,0.19383083,897.92,896.73,0.82852937]
[1764753730587,0.19383083,897.92,896.78,0.82852937]
[1764753730887,0.19383083,897.92,896.87,0.82852937]
[1764753733188,0.19383083,897.92,896.92,0.82852937]
[1764753735386,0.19383083,897.92,896.93,0.82852937]
[1764753735790,0.19383083,897.92,896.95,0.82852937]
[1764753735991,0.19383083,897.92,896.98,0.82852937]
[1764753736193,0.19383083,897.92,896.99,0.82852937]
[1764753736392,0.19383083,897.92,897.02,0.82852937]
[1764753736592,0.19383083,897.92,897.05,0.82852937]
[1764753738993,0.19383083,897.92,897.13,0.82852937]
[1764753739191,0.19383083,897.92,897.14,0.82852937]
[1764753739395,0.19383083,897.92,897.13,0.82852937]
[1764753743202,0.19383083,897.92,897.15,0.82852937]
[1764753743806,0.19383083,897.92,897.16,0.82852937]
[1764753757916,0.19383083,897.92,897.17,0.82852937]
[1764753758217,0.19383083,897.92,897.16,0.82852937]
[1764753762122,0.19383083,897.92,897.15,0.82852937]
[1764753770930,0.19383083,897.92,897.18,0.82852937]
[1764753777138,0.19383083,897.92,897.19,0.82852937]
[1764753778038,0.19383083,897.92,897.2,0.82852937]
[1764753778834,0.19383083,897.92,897.21,1.413]
[1764753781334,0.19383083,897.92,897.21,2.24152937]
[1764753782334,0.19383083,897.92,897.22,0.82852937]
[1764753782934,0.19383083,897.92,897.24,0.82852937]
[1764753783137,0.19383083,897.92,897.21,1.413]
[1764753783138,1.1059566,898.37,897.25,0.82852937]
[1764753783336,1.1059566,898.4,897.3,0.82852937]
[1764753783537,0.19378928,898.05,897.3,0.82852937]
[1764753784137,0.19378928,898.05,897.31,0.82852937]
[1764753784642,0.19378928,898.05,897.32,1.196]
[1764753786242,0.19378928,898.05,897.32,2.02452937]
[1764753787244,0.19378928,898.05,897.33,0.82852937]
[1764753788244,0.19378928,898.05,897.35,0.82852937]
[1764753789243,0.19378928,898.05,897.37,0.82852937]
[1764753790246,0.19378928,898.05,897.4,0.82852937]
[1764753791546,0.19378928,898.05,897.41,0.82852937]
[1764753791751,0.19378928,898.05,897.33,0.82852937]
[1764753792152,0.19378928,898.05,897.34,0.82852937]
[1764753792651,0.19378928,898.05,897.43,0.82852937]
[1764753793448,1.1059566,898.02,897.32,1.196]
[1764753794150,1.1059566,898.0,897.32,1.196]
[1764753795353,1.1059566,897.99,897.32,1.196]
[1764753797150,1.1059566,898.0,897.32,1.196]
[1764753799164,1.1059566,898.01,897.32,1.196]
[1764753800159,1.1059566,898.0,897.32,1.196]
[1764753800766,1.1059566,898.01,897.32,1.196]
[1764753801268,1.1059566,898.02,897.32,1.196]
[1764753801765,1.1059566,898.03,897.32,1.196]
[1764753803170,1.1059566,897.98,897.32,1.196]
[1764753803869,1.1059566,898.01,897.32,1.196]
[1764753807266,1.1059566,898.03,897.32,1.196]
[1764753808573,0.19378928,898.05,897.32,1.196]
[1764753812771,0.19378928,898.05,897.3,0.83222187]
[1764753813274,0.19378928,898.05,897.34,0.83222187]
[1764753814177,0.19378928,898.05,897.39,0.83222187]
[1764753814378,0.19378928,898.05,897.46,0.83222187]
[1764753814578,0.19378928,898.05,897.47,0.83222187]
[1764753814778,0.19378928,898.05,897.5,0.83222187]
[1764753815276,0.19378928,898.05,897.49,0.83222187]
[1764753816173,0.19378928,898.05,897.48,0.83222187]
[1764753816674,0.19378928,898.05,897.49,1.137]
[1764753817474,1.1059566,898.39,897.49,1.96922187]
[1764753817773,0.19376392,898.15,897.5,0.83222187]
[1764753818180,0.19376392,898.15,897.49,1.96922187]
[1764753818379,0.19376392,898.15,897.5,0.83222187]
[1764753818574,0.19376392,898.15,897.53,0.83222187]
[1764753819274,0.19376392,898.15,897.54,1.313]
[1764753821275,0.19376392,898.15,897.54,2.14522187]
[1764753822179,0.19376392,898.15,897.54,1.313]
[1764753823379,0.19376392,898.15,897.54,2.14522187]
[1764753824280,0.19376392,898.15,897.54,1.313]
[1764753826893,0.19376392,898.15,897.61,0.83222187]
[1764753827383,0.19376392,898.15,897.6,0.83222187]
[1764753828183,0.19376392,898.15,897.59,0.83222187]
[1764753829185,5.43463267,898.61,897.54,1.313]
[1764753829186,5.43463267,898.61,897.58,0.83222187]
[1764753829384,0.19373479,898.26,897.59,0.83222187]
[1764753829681,5.43463267,898.61,897.59,0.83222187]
[1764753830081,0.19373533,898.25,897.59,0.83222187]
[1764753830280,5.43463267,898.61,897.58,0.83222187]
[1764753830481,0.19373533,898.36,897.58,0.83222187]
[1764753832287,0.19373533,898.36,897.57,0.83222187]
[1764753833388,0.19373533,898.36,897.56,0.83222187]
[1764753834287,0.19373533,898.36,897.55,0.83222187]
[1764753836182,0.19373533,898.36,897.54,2.14522187]
[1764753837586,0.19373533,898.36,897.55,0.83222187]
[1764753837786,0.19373533,898.36,897.54,2.14522187]
[1764753838186,0.19373533,898.36,897.54,1.313]
[1764753840184,0.19373533,898.36,897.55,0.987]
[1764753852194,0.19373533,898.36,897.56,1.39]
[1764753865306,0.19373533,898.36,897.55,1.81922187]
[1764753866411,0.19373533,898.36,897.56,0.83222187]
[1764753867310,0.19373533,898.36,897.57,0.83222187]
[1764753868007,0.19373533,898.36,897.58,1.091]
[1764753868209,0.19373533,898.36,897.59,0.83222187]
[1764753869111,0.19373533,898.36,897.6,0.83222187]
[1764753870010,0.19373533,898.36,897.62,0.83222187]
[1764753870310,0.19373533,898.36,897.64,0.83222187]
[1764753871213,0.19373533,898.36,897.65,0.83222187]
[1764753871916,0.19373533,898.36,897.64,0.83222187]
[1764753872212,0.19373533,898.36,897.66,0.83222187]
[1764753873118,0.19373533,898.36,897.67,0.83222187]
[1764753874316,0.19373533,898.36,897.68,0.83222187]
[1764753875319,0.19373533,898.36,897.69,0.83222187]
[1764753876921,0.19373533,898.36,897.71,0.83222187]
[1764753877320,0.19373533,898.36,897.72,0.83222187]
[1764753881623,0.19373533,898.36,897.79,0.83222187]
[1764753882324,0.19373533,898.36,897.58,1.091]
[1764753882325,0.19373533,898.36,897.78,0.83222187]
[1764753888229,0.19373533,898.36,897.72,0.83222187]
[1764753888626,0.19373533,898.36,897.59,0.83222187]
[1764753888827,0.19373533,898.36,897.58,1.92322187]
[1764753890527,0.19373533,898.36,897.58,1.091]
[1764753891030,0.19373533,898.36,897.58,1.92322187]
[1764753893037,0.19373533,898.36,897.64,0.83222187]
[1764753893337,0.19373533,898.36,897.63,0.83222187]
[1764753904139,0.19373533,898.36,897.64,1.308]
[1764753908340,0.19373533,898.36,897.65,1.369]
[1764753908341,1.1059566,898.28,897.65,1.369]
[1764753908545,1.1059566,898.23,897.65,1.369]
[1764753908843,1.1059566,898.22,897.65,1.369]
[1764753909344,1.1059566,898.21,897.65,1.369]
[1764753910150,1.1059566,898.23,897.65,1.369]
[1764753911244,1.1059566,898.24,897.65,1.369]
[1764753912249,1.1059566,898.25,897.65,1.369]
[1764753913150,1.1059566,898.26,897.65,1.369]
[1764753914050,1.1059566,898.21,897.65,1.369]
[1764753914246,1.1059566,898.22,897.65,1.369]
[1764753915052,1.1059566,898.25,897.65,1.369]
[1764753915251,1.1059566,898.31,897.65,1.369]
[1764753916348,1.1059566,898.32,897.65,1.369]
[1764753916549,1.1059566,898.34,897.65,1.369]
[1764753916850,0.19373533,898.36,897.65,1.369]
[1764753944068,0.19373533,898.36,897.66,1.451]
[1764753947075,0.19373533,898.36,897.67,1.462]
[1764753955084,1.29969193,898.36,897.67,1.462]
[1764753957982,1.1059566,898.28,897.67,1.462]
[1764753959882,1.1059566,898.34,897.67,1.462]
[1764753960785,0.19373533,898.36,897.67,1.462]
[1764753960786,1.1059566,898.35,897.67,1.462]
[1764753962386,1.29969193,898.36,897.67,1.462]
[1764753962688,0.19373533,898.36,897.67,1.462]
[1764753969089,0.19373533,898.36,897.67,2.29422187]
[1764753969293,0.19373533,898.36,897.68,0.83222187]
[1764753969889,0.19373533,898.36,897.68,0.8299492]
[1764753972288,0.19373533,898.36,897.69,0.8299492]
[1764753972495,0.19373533,898.36,897.7,0.8299492]
[1764753973395,0.19373533,898.36,897.71,0.8299492]
[1764753973995,0.19373533,898.36,897.72,1.023]
[1764753974195,0.19373533,898.36,897.72,1.8529492]
[1764753974392,0.19373533,898.36,897.73,0.8299492]
[1764753974598,0.19373533,898.36,897.74,0.8299492]
[1764753974797,0.19373533,898.36,897.77,0.8299492]
[1764753975192,0.19373533,898.36,897.78,0.8299492]
[1764753976695,0.19373533,898.36,897.79,0.8299492]
[1764753977099,0.19373533,898.36,897.78,0.8299492]
[1764753978298,0.19373533,898.36,897.77,0.8299492]
[1764753979902,0.19373533,898.36,897.78,0.8299492]
[1764753980201,0.19373533,898.36,897.77,0.8299492]
[1764753980702,0.19373533,898.36,897.8,0.8299492]
[1764753981306,0.19373533,898.36,897.79,0.8299492]
[1764753983200,0.19373533,898.36,897.78,0.8299492]
[1764753983705,0.19373533,898.36,897.8,0.82970831]
[1764753985305,0.19373533,898.36,897.79,0.82970831]
[1764753987304,0.19373533,898.36,897.78,0.82970831]
[1764753988409,1.1059566,898.74,897.78,0.82970831]
[1764753988608,0.19369975,898.46,897.78,0.82970831]
[1764753989210,0.19369975,898.46,897.77,0.82970831]
[1764753992307,0.19369975,898.46,897.76,0.82970831]
[1764753995916,0.19369975,898.46,897.83,0.82970831]
[1764753996315,0.19369975,898.46,897.74,1.42]
[1764753996316,0.19369975,898.46,897.82,0.82970831]
[1764753999124,0.19369975,898.46,897.81,0.82970831]
[1764754001225,0.19369975,898.46,897.8,0.82970831]
[1764754007230,0.19369975,898.46,897.79,0.82970831]
[1764754007430,0.19369975,898.46,897.8,0.82970831]
[1764754010332,6.96729482,898.8,897.8,0.82970831]
[1764754010532,6.96729482,898.8,897.84,0.82970831]
[1764754010731,0.19368142,898.59,897.84,0.82970831]
[1764754014430,0.19368142,898.59,897.88,0.82970831]
[1764754016331,0.19368142,898.59,897.89,0.82970831]
[1764754018234,0.19368142,898.59,897.9,0.82970831]
[1764754019238,0.19368142,898.59,897.91,0.82970831]
[1764754019840,0.19368142,898.59,897.92,0.82970831]
[1764754020035,0.19368142,898.59,897.91,0.82970831]
[1764754020736,0.19368142,898.59,897.93,0.82970831]
[1764754020936,2.77966947,899.75,897.81,1.372]
[1764754020937,1.1059566,899.08,898.05,0.82970831]
[1764754021142,0.19365717,898.77,898.15,0.82970831]
[1764754022138,0.19365717,898.77,898.14,0.82970831]
[1764754022343,0.19365717,898.77,898.15,0.82970831]
[1764754022637,0.19365717,898.77,898.16,0.82970831]
[1764754023041,0.19365717,898.77,898.14,0.82970831]
[1764754023238,1.1059566,899.22,898.15,0.82970831]
[1764754023441,0.1936103,898.87,898.15,0.82970831]
[1764754023739,1.1059566,899.22,898.15,0.82970831]
[1764754023937,0.19360977,898.87,898.15,0.82970831]
[1764754024139,1.1059566,899.23,898.13,0.82970831]
[1764754024339,1.1059566,899.23,898.14,0.82970831]
[1764754025140,1.1059566,899.24,898.13,0.82970831]
[1764754025440,0.19360653,898.96,898.13,0.82970831]
[1764754027041,0.19360653,898.96,898.12,0.82970831]
[1764754028247,0.19360653,898.96,898.13,0.82970831]
[1764754030247,0.19360653,898.96,898.12,0.82970831]
[1764754032244,0.19360653,898.96,898.11,0.82970831]
[1764754034850,0.19360653,898.96,898.12,0.82970831]
[1764754035146,0.19360653,898.96,898.13,0.82970831]
[1764754035949,0.19360653,898.96,898.14,0.939]
[1764754043359,0.19360653,898.96,898.16,0.82970831]
[1764754043555,0.19360653,898.96,898.26,0.82970831]
[1764754044154,0.19360653,898.96,898.25,0.82970831]
[1764754046057,0.19360653,898.96,898.24,0.82970831]
[1764754046957,0.19360653,898.96,898.27,0.82970831]
[1764754047764,0.19356292,899.09,898.28,0.82970831]
[1764754048157,0.19356292,899.09,898.27,0.82970831]
[1764754051059,0.19356292,899.09,898.26,0.82970831]
[1764754052764,0.19356292,899.09,898.14,0.939]
[1764754052765,0.19356292,899.09,898.25,0.82970831]
[1764754059163,0.19356292,899.09,898.26,0.82970831]
[1764754059670,0.19356292,899.09,898.23,0.82970831]
[1764754059974,0.19356292,899.09,898.15,0.82970831]
[1764754060873,0.19356292,899.09,898.14,1.76870831]
[1764754061073,0.19356292,899.09,898.14,0.939]
[1764754064268,0.19356292,899.09,898.14,1.76870831]
[1764754066170,0.19356292,899.09,898.15,0.82970831]
[1764754066771,0.19356292,899.09,898.14,0.939]
[1764754068977,0.19356292,899.09,898.12,0.82970831]
[1764754069277,0.19356292,899.09,898.13,0.82970831]
[1764754070277,0.19356292,899.09,898.14,0.82970831]
[1764754070578,0.19356292,899.09,898.15,0.82970831]
[1764754071174,0.19356292,899.09,898.07,1.034]
[1764754071175,0.19356292,899.09,898.16,0.82970831]
[1764754072378,0.19356292,899.09,898.17,0.82970831]
[1764754073072,0.19356292,899.09,898.18,1.065]
[1764754074275,0.19356292,899.09,898.18,1.89470831]
[1764754075278,0.19356292,899.09,898.19,0.82970831]
[1764754076378,0.19356292,899.09,898.2,0.82970831]
[1764754077381,0.19356292,899.09,898.21,0.82970831]
[1764754078081,0.19356292,899.09,898.22,0.82970831]
[1764754078282,0.19356292,899.09,898.23,0.82970831]
[1764754079282,0.19356292,899.09,898.24,0.82970831]
[1764754083290,0.19356292,899.09,898.18,1.065]
[1764754083291,0.19356292,899.09,898.2,0.82970831]
[1764754093294,0.19356292,899.09,898.24,0.82970831]
[1764754093793,0.19356292,899.09,898.25,0.963]
[1764754094696,0.19356292,899.09,898.25,1.79270831]
[1764754094990,0.19356292,899.09,898.26,0.82970831]
[1764754095191,0.19356292,899.09,898.25,1.79270831]
[1764754095497,0.19356292,899.09,898.26,0.82970831]
[1764754095697,0.19356292,899.09,898.3,0.82970831]
[1764754097396,0.19356292,899.09,898.31,0.82970831]
[1764754099599,0.19356292,899.09,898.32,0.82970831]
[1764754100101,0.19356292,899.09,898.31,0.82970831]
[1764754100398,0.19356292,899.09,898.32,0.82970831]
[1764754101101,0.19356292,899.09,898.31,0.82970831]
[1764754101502,0.19356292,899.09,898.32,0.82970831]
[1764754101702,0.19356292,899.09,898.31,0.82970831]
[1764754102202,0.19356292,899.09,898.3,0.82970831]
[1764754102502,0.19356292,899.09,898.31,0.82970831]
[1764754103402,0.19356292,899.09,898.29,0.82970831]
[1764754103601,0.19356292,899.09,898.28,0.82970831]
[1764754104101,0.19356292,899.09,898.25,0.963]
[1764754104102,0.19356292,899.09,898.29,2.18870831]
[1764754104303,0.19356292,899.09,898.29,1.359]
[1764754104500,0.19356292,899.09,898.29,2.18870831]
[1764754107707,0.19356292,899.09,898.29,1.359]
[1764754107904,0.19356292,899.09,898.29,2.18884629]
[1764754108105,0.19356292,899.09,898.3,0.82984629]
[1764754110502,0.19356292,899.09,898.31,0.82984629]
[1764754112211,0.19356292,899.09,898.32,0.82984629]
[1764754112909,0.19356292,899.09,898.29,1.359]
[1764754113109,1.1059566,899.05,898.29,1.359]
[1764754113909,1.1059566,898.99,898.29,1.359]
[1764754114208,1.1059566,898.98,898.29,1.359]
[1764754114408,1.1059566,898.96,898.29,1.359]
[1764754115010,1.1059566,898.84,898.29,1.359]
[1764754115209,1.1059566,898.83,898.29,1.359]
[1764754115411,1.1059566,898.85,898.29,1.359]
[1764754115608,1.1059566,898.79,898.29,1.359]
[1764754116108,1.1059566,898.77,898.29,1.359]
[1764754116407,1.1059566,898.78,898.29,1.359]
[1764754117208,1.1059566,898.77,898.29,1.359]
[1764754117413,1.1059566,898.79,898.29,1.359]
[1764754117913,1.1059566,898.77,898.3,1.071]
[1764754118411,1.1059566,898.79,898.3,1.071]
[1764754119111,1.1059566,898.78,898.3,1.071]
[1764754119407,1.1059566,898.8,898.3,1.071]
[1764754120507,1.1059566,898.81,898.3,1.071]
[1764754121511,1.1059566,898.82,898.3,1.071]
[1764754122411,1.1059566,898.85,898.3,1.071]
[1764754123312,1.1059566,898.76,898.3,1.071]
[1764754123512,1.1059566,898.77,898.3,1.071]
[1764754124011,1.1059566,898.76,898.3,1.071]
[1764754124211,1.1059566,898.6,898.3,1.071]
[1764754124414,1.1059566,898.62,898.3,1.071]
[1764754125208,1.1059566,898.67,898.3,1.071]
[1764754125412,1.1059566,898.68,898.3,1.071]
[1764754126208,1.1059566,898.78,898.3,1.071]
[1764754127507,1.1059566,898.79,898.3,1.071]
[1764754128412,1.65833818,898.95,898.3,1.071]
[1764754128413,1.1059566,898.8,898.3,1.071]
[1764754129815,1.1059566,898.83,898.29,1.359]
[1764754130514,1.1059566,898.84,898.29,1.359]
[1764754130810,1.1059566,898.85,898.29,1.359]
[1764754131012,1.1059566,898.86,898.29,1.359]
[1764754131210,1.1059566,898.99,898.29,1.359]
[1764754132316,1.1059566,898.99,898.3,1.16]
[1764754133411,1.1059566,898.98,898.3,1.16]
[1764754134016,1.1059566,898.99,898.3,1.16]
[1764754134715,1.1059566,899.0,898.3,1.16]
[1764754135413,1.1059566,899.01,898.3,1.16]
[1764754137611,0.19356292,899.09,898.3,1.16]
[1764754137612,1.1059566,899.02,898.3,1.16]
[1764754140217,1.1059566,899.03,898.3,1.16]
[1764754140920,1.1059566,899.06,898.3,1.16]
[1764754141721,0.19356292,899.09,898.3,1.16]
[1764754150321,0.19356292,899.09,898.31,1.121]
[1764754165835,0.19356292,899.09,898.32,1.36]
[1764754185362,0.19356292,899.09,898.32,2.18984629]
[1764754186260,0.19356292,899.09,898.32,1.36]
[1764754186560,0.19356292,899.09,898.32,2.18984629]
[1764754187364,0.19356292,899.09,898.33,0.82984629]
[1764754188366,0.19356292,899.09,898.34,0.82984629]
[1764754189368,0.19356292,899.09,898.36,0.82984629]
[1764754190366,0.19356292,899.09,898.37,0.82984629]
[1764754193375,0.19356292,899.09,898.38,0.82984629]
[1764754196377,0.19356292,899.09,898.39,0.82984629]
[1764754198477,0.19356292,899.09,898.4,0.82984629]
[1764754200577,0.19356292,899.09,898.32,1.36]
[1764754201579,0.19356292,899.09,898.41,0.992]
[1764754208686,0.19356292,899.09,898.42,0.909]
[1764754213390,1.1059566,899.08,898.42,0.909]
[1764754217292,1.1059566,899.07,898.42,0.909]
[1764754222495,1.1059566,899.06,898.42,0.909]
[1764754223395,0.19356292,899.09,898.42,0.909]
[1764754232205,1.1059566,899.08,898.42,0.909]
[1764754232408,1.1059566,899.07,898.42,0.909]
[1764754233305,1.1059566,899.08,898.42,0.909]
[1764754233510,1.1059566,899.07,898.42,0.909]
[1764754235908,1.1059566,899.07,898.41,0.992]
[1764754237811,1.1059566,899.06,898.41,0.992]
[1764754238114,1.1059566,898.99,898.41,0.992]
[1764754238607,1.1059566,898.95,898.41,0.992]
[1764754238811,1.1059566,898.95,898.42,1.374]
[1764754239109,1.1059566,898.89,898.42,1.374]
[1764754239312,1.1059566,898.79,898.42,1.374]
[1764754239612,1.1059566,898.78,898.42,1.374]
[1764754240309,1.1059566,898.8,898.42,1.374]
[1764754241514,1.1059566,898.82,898.42,1.374]
[1764754242115,1.1059566,898.81,898.42,1.374]
[1764754242409,1.1059566,898.83,898.42,1.374]
[1764754243014,1.1059566,898.82,898.42,1.374]
[1764754244315,1.1059566,898.84,898.42,1.374]
[1764754245314,1.1059566,898.85,898.42,1.374]
[1764754245716,1.1059566,898.81,898.42,1.374]
[1764754245916,1.1059566,898.8,898.42,1.374]
[1764754246215,1.1059566,898.81,898.42,1.374]
[1764754247318,1.1059566,898.82,898.42,1.374]
[1764754248118,0.19366741,898.73,898.42,1.374]
[1764754251923,0.19366741,898.73,897.61,0.82984629]
[1764754252323,0.19366741,898.73,897.6,0.82984629]
[1764754252724,0.19366741,898.73,897.54,0.82984629]
[1764754253422,1.1059566,898.65,897.42,0.82984629]
[1764754254425,1.1059566,898.66,897.41,0.82984629]
[1764754255223,1.1059566,898.66,896.51,0.01100898]
[1764754255224,1.1059566,898.67,897.4,0.82984629]
[1764754256328,1.1059566,898.68,897.39,0.82984629]
[1764754257128,1.1059566,898.69,897.4,0.82984629]
[1764754257328,1.1059566,898.7,897.39,0.82984629]
[1764754257529,1.1059566,898.71,897.4,0.82984629]
[1764754257730,0.19366741,898.73,897.34,0.82984629]
[1764754257731,1.1059566,898.65,897.34,0.82984629]
[1764754258332,1.1059566,898.67,897.34,0.82984629]
[1764754259733,1.1059566,898.66,897.33,0.82984629]
[1764754260434,0.19366741,898.73,897.28,0.82984629]
[1764754260435,1.1059566,898.62,897.28,0.82984629]
[1764754261335,1.1059566,898.63,897.27,0.82984629]
[1764754262031,1.1059566,898.63,897.26,0.82984629]
[1764754262232,1.1059566,898.64,897.26,0.82984629]
[1764754263132,1.1059566,898.65,897.25,0.82984629]
[1764754263437,1.1059566,898.68,897.28,0.82984629]
[1764754263639,1.1059566,898.66,897.26,0.82984629]
[1764754264134,1.1059566,898.68,897.25,0.82984629]
[1764754265234,1.1059566,898.69,897.25,0.82984629]
[1764754266035,1.1059566,898.69,897.08,1.11118708]
[1764754266239,0.19366741,898.73,897.16,0.82686315]
[1764754266240,1.1059566,898.63,897.16,0.82686315]
[1764754266636,1.1059566,898.61,897.14,0.82686315]
[1764754267140,1.1059566,898.62,897.13,0.82686315]
[1764754268244,1.1059566,898.64,897.12,0.82686315]
[1764754268645,1.1059566,898.6,897.08,0.82686315]
[1764754269143,1.1059566,898.61,897.07,0.82686315]
[1764754269346,1.1059566,898.46,896.92,0.82686315]
[1764754270141,1.1059566,898.48,896.9,0.82686315]
[1764754270346,1.1059566,898.46,896.88,0.82686315]
[1764754270546,1.1059566,898.45,896.87,0.82686315]
[1764754271041,1.1059566,898.42,896.84,0.82686315]
[1764754271245,1.1059566,898.45,896.83,0.82686315]
[1764754271439,1.1059566,898.4,896.77,0.82686315]
[1764754272148,1.1059566,898.42,896.76,0.82686315]
[1764754273146,1.1059566,898.45,896.74,0.82686315]
[1764754273541,1.1059566,898.48,896.77,0.82686315]
[1764754273745,1.1059566,898.52,896.81,0.82686315]
[1764754274147,1.1059566,898.57,896.84,0.82686315]
[1764754275147,1.1059566,898.59,896.83,0.82686315]
[1764754275443,1.1059566,898.59,896.84,0.82686315]
[1764754276147,1.1059566,898.6,896.83,0.82686315]
[1764754276444,1.1059566,898.61,896.84,0.82686315]
[1764754277347,1.1059566,898.62,896.84,0.82686315]
[1764754278144,1.1059566,898.63,896.83,0.82686315]
[1764754278348,1.1059566,898.62,896.83,0.82686315]
[1764754279144,1.1059566,898.63,896.83,0.82686315]
[1764754280150,1.1059566,898.64,896.82,0.82686315]
[1764754280443,1.1059566,898.63,896.83,0.82686315]
[1764754280844,1.1059566,898.62,896.82,0.82686315]
[1764754281351,1.1059566,898.68,896.87,0.82686315]
[1764754281649,0.19366741,898.73,896.95,0.82686315]
[1764754283645,1.1059566,898.72,896.93,0.82686315]
[1764754283843,1.29962401,898.73,896.94,0.82686315]
[1764754284046,0.19366741,898.73,896.97,0.82686315]
[1764754284250,0.19366741,898.73,897.01,0.82686315]
[1764754284449,0.19366741,898.73,897.01,0.82430441]
[1764754285350,0.19366741,898.73,897.02,0.82430441]
[1764754286850,0.19366741,898.73,897.05,0.82430441]
[1764754287249,0.19366741,898.73,896.52,0.19384973]
[1764754287250,0.19366741,898.73,897.1,0.82430441]
[1764754287547,0.19366741,898.73,897.11,0.82430441]
[1764754288144,0.19366741,898.73,897.12,0.82430441]
[1764754289149,0.19366741,898.73,897.13,0.82430441]
[1764754290152,0.19366741,898.73,897.14,0.82430441]
[1764754291253,0.19366741,898.73,897.16,0.82430441]